fUSD/lending_fUSD_20250616
["ID","MTS","AMOUNT","RATE_DAILY","PERIOD"]
[366159070,1750091455431,-803.04,0.00016223,2]
[366159071,1750091455441,-490.0,0.00016223,2]
[366159072,1750091455451,-1487.25,0.00016223,2]
[366159073,1750091455461,-490.0,0.00016223,2]
[366159074,1750091455471,-1202.28,0.00016223,2]
[366159075,1750091455482,-540.16,0.00016223,2]
[366159076,1750091455492,-1382.55,0.00016223,2]
[366159077,1750091455502,-612.84,0.00016223,2]
[366159078,1750091455513,-490.0,0.00016223,2]
[366159079,1750091455523,-2155.95,0.00016223,2]
[366159080,1750091455534,-12623.4,0.00016223,2]
[366159081,1750091455545,-490.0,0.00016223,2]
[366159082,1750091455873,-490.0,0.00016223,2]
[366159083,1750091455898,-490.0,0.00016223,2]
[366159084,1750091455910,-1008.07,0.00016223,2]
[366159085,1750091455920,-490.0,0.00016223,2]
[366159086,1750091455930,-552.91,0.00016223,2]
[366159087,1750091455941,-1001.03,0.00016223,2]
[366159088,1750091455952,-543.35,0.00016223,2]
[366159089,1750091455963,-490.0,0.00016223,2]
[366159090,1750091455973,-1338.73,0.00016223,2]
[366159091,1750091455983,-490.0,0.00016223,2]
[366159092,1750091455994,-1011.57,0.00016223,2]
[366159093,1750091456004,-490.0,0.00016223,2]
[366159094,1750091456014,-490.0,0.00016223,2]
[366159095,1750091456024,-585.71,0.00016223,2]
[366159096,1750091456035,-490.0,0.00016223,2]
[366159097,1750091456045,-1292.89,0.00016223,2]
[366159098,1750091456056,-490.0,0.00016223,2]
[366159099,1750091456067,-490.0,0.00016223,2]
[366159100,1750091456077,-1952.55,0.00016223,2]
[366159101,1750091456087,-1380.69,0.00016223,2]
[366159102,1750091456097,-490.0,0.00016223,2]
[366159103,1750091456107,-589.74,0.00016223,2]
[366159104,1750091456117,-971.87,0.00016223,2]
[366159105,1750091456127,-490.0,0.00016223,2]
[366159106,1750091456140,-906.35,0.00016223,2]
[366159107,1750091456150,-490.0,0.00016223,2]
[366159108,1750091456160,-490.0,0.00016223,2]
[366159109,1750091456170,-490.0,0.00016223,2]
[366159110,1750091456180,-490.0,0.00016223,2]
[366159111,1750091456191,-878.13,0.00016223,2]
[366159112,1750091456201,-490.0,0.00016223,2]
[366159113,1750091456211,-501.9,0.00016223,2]
[366159114,1750091456221,-6192.16,0.00016223,2]
[366159115,1750091456231,-490.0,0.00016223,2]
[366159116,1750091456243,-536.82,0.00016223,2]
[366159117,1750091456254,-516.99,0.00016223,2]
[366159118,1750091456264,-582.6,0.00016223,2]
[366159119,1750091456274,-490.0,0.00016223,2]
[366159120,1750091456286,-490.0,0.00016223,2]
[366159121,1750091456295,-735.7,0.00016223,2]
[366159122,1750091456306,-4863.13,0.00016223,2]
[366159123,1750091456316,-515.15,0.00016223,2]
[366159124,1750091456326,-490.0,0.00016223,2]
[366159125,1750091456336,-490.0,0.00016223,2]
[366159126,1750091456347,-2450.64,0.00016223,2]
[366159127,1750091456357,-534.87,0.00016223,2]
[366159128,1750091456367,-490.0,0.00016223,2]
[366159129,1750091456376,-490.0,0.00016223,2]
[366159130,1750091456387,-3720.53,0.00016223,2]
[366159131,1750091456397,-13776.89,0.00016223,2]
[366159132,1750091456406,-490.0,0.00016223,2]
[366159133,1750091456416,-777.37,0.00016223,2]
[366159134,1750091456426,-12627.79,0.00016223,2]
[366159135,1750091456437,-757.98,0.00016223,2]
[366159136,1750091456447,-638.56,0.00016223,2]
[366159137,1750091456457,-490.0,0.00016223,2]
[366159138,1750091456468,-490.0,0.00016223,2]
[366159139,1750091456479,-698.04,0.00016223,2]
[366159140,1750091456489,-1550.73,0.00016223,2]
[366159141,1750091456499,-1843.76,0.00016223,2]
[366159142,1750091456509,-2194.54,0.00016223,2]
[366159143,1750091456519,-490.0,0.00016223,2]
[366159144,1750091456530,-648.44,0.00016223,2]
[366159145,1750091456539,-490.0,0.00016223,2]
[366159146,1750091456549,-613.01,0.00016223,2]
[366159147,1750091456562,-1029.26,0.00016223,2]
[366159148,1750091456572,-1540.14,0.00016223,2]
[366159149,1750091456582,-490.0,0.00016223,2]
[366159150,1750091456592,-720.59,0.00016223,2]
[366159151,1750091456603,-490.0,0.00016223,2]
[366159152,1750091456613,-2562.39,0.00016223,2]
[366159153,1750091456624,-490.0,0.00016223,2]
[366159154,1750091456637,-490.0,0.00016223,2]
[366159155,1750091456647,-490.0,0.00016223,2]
[366159156,1750091456657,-700.37,0.00016223,2]
[366159157,1750091456667,-664.21,0.00016223,2]
[366159158,1750091456677,-490.0,0.00016223,2]
[366159159,1750091456687,-1341.11,0.00016223,2]
[366159160,1750091456697,-12539.42,0.00016223,2]
[366159161,1750091456707,-490.0,0.00016223,2]
[366159162,1750091456717,-955.34,0.00016223,2]
[366159163,1750091456727,-586.82199468,0.00016224,2]
[366159164,1750091456738,-9462.07433665,0.00016224,2]
[366159165,1750091456748,-150.0,0.00016225,2]
[366159166,1750091456758,-150.0,0.00016231,2]
[366159167,1750091456767,-711.95,0.00016236,2]
[366159168,1750091456777,-150.0,0.00016239,2]
[366159169,1750091456787,-150.0,0.00016246,2]
[366159170,1750091456797,-150.0,0.00016247,2]
[366159171,1750091456806,-150.0,0.00016247,2]
[366159172,1750091456816,-150.0,0.00016249,2]
[366159173,1750091456825,-150.0,0.00016249,2]
[366159174,1750091456835,-150.0,0.00016254,2]
[366159175,1750091456846,-1000.0,0.00016255,2]
[366159176,1750091456855,-150.0,0.00016256,2]
[366159177,1750091456866,-150.0,0.00016258,2]
[366159178,1750091456876,-150.0,0.00016258,2]
[366159179,1750091456887,-150.0,0.00016258,2]
[366159180,1750091456898,-1847.72,0.0001626,2]
[366159181,1750091456908,-150.0,0.00016263,2]
[366159182,1750091456918,-150.0,0.00016263,2]
[366159183,1750091456928,-2000.0,0.00016265,2]
[366159184,1750091456938,-276.46146391,0.00016269,2]
[366159185,1750091456949,-150.0,0.00016271,2]
[366159186,1750091456958,-150.0,0.00016271,2]
[366159187,1750091456968,-150.0,0.00016271,2]
[366159188,1750091456978,-292.41870439,0.00016271,2]
[366159189,1750091456988,-150.0,0.00016271,2]
[366159190,1750091456998,-150.0,0.00016271,2]
[366159191,1750091457008,-150.0,0.00016271,2]
[366159192,1750091457019,-150.0,0.00016271,2]
[366159193,1750091457030,-150.0,0.00016271,2]
[366159194,1750091457040,-150.0,0.00016271,2]
[366159195,1750091457050,-150.0,0.00016271,2]
[366159196,1750091457061,-150.0,0.00016271,2]
[366159197,1750091457071,-150.0,0.00016271,2]
[366159198,1750091457086,-150.0,0.00016272,2]
[366159199,1750091457095,-246.80271096,0.00016272,2]
[366159200,1750091457105,-150.0,0.00016273,2]
[366159201,1750091457115,-150.0,0.0001628,2]
[366159202,1750091457125,-9462.07433665,0.00016281,2]
[366159203,1750091457136,-150.0,0.00016283,2]
[366159204,1750091457146,-8387.00614784,0.00016287,2]
[366159205,1750091457156,-150.0,0.00016289,2]
[366159206,1750091457166,-150.0,0.00016289,2]
[366159207,1750091457176,-150.0,0.00016292,2]
[366159208,1750091457186,-150.0,0.00016292,2]
[366159209,1750091457196,-150.0,0.00016294,2]
[366159210,1750091457205,-181.1392547,0.00016298,2]
[366159211,1750091457215,-150.0,0.00016299,2]
[366159212,1750091457225,-150.0,0.000163,2]
[366159213,1750091457235,-150.0,0.000163,2]
[366159214,1750091457244,-150.0,0.00016304,2]
[366159215,1750091457254,-150.0,0.00016311,2]
[366159216,1750091457264,-711.95,0.00016322,2]
[366159217,1750091457274,-571.63,0.00016323,2]
[366159218,1750091457285,-654.64,0.00016323,2]
[366159219,1750091457295,-551.46,0.00016323,2]
[366159220,1750091457305,-490.0,0.00016323,2]
[366159221,1750091457314,-720.05,0.00016323,2]
[366159222,1750091457324,-601.21,0.00016323,2]
[366159223,1750091457334,-490.0,0.00016323,2]
[366159224,1750091457344,-490.0,0.00016323,2]
[366159225,1750091457354,-490.0,0.00016323,2]
[366159226,1750091457365,-490.0,0.00016323,2]
[366159227,1750091457376,-542.58,0.00016323,2]
[366159228,1750091457387,-494.78,0.00016323,2]
[366159229,1750091457397,-490.0,0.00016323,2]
[366159230,1750091457407,-490.0,0.00016323,2]
[366159231,1750091457417,-564.57,0.00016323,2]
[366159232,1750091457427,-1094.61,0.00016323,2]
[366159233,1750091457437,-490.0,0.00016323,2]
[366159234,1750091457447,-887.5,0.00016323,2]
[366159235,1750091457457,-490.0,0.00016323,2]
[366159236,1750091457467,-711.53,0.00016323,2]
[366159237,1750091457477,-1497.17,0.00016323,2]
[366159238,1750091457486,-625.47,0.00016323,2]
[366159239,1750091457496,-1237.52,0.00016323,2]
[366159240,1750091457509,-857.93,0.00016323,2]
[366159241,1750091457520,-744.49,0.00016323,2]
[366159242,1750091457530,-490.0,0.00016323,2]
[366159243,1750091457541,-490.0,0.00016323,2]
[366159244,1750091457553,-1714.32,0.00016323,2]
[366159245,1750091457565,-490.0,0.00016323,2]
[366159246,1750091457576,-857.5,0.00016323,2]
[366159247,1750091457586,-490.0,0.00016323,2]
[366159248,1750091457596,-1495.39,0.00016323,2]
[366159249,1750091457606,-490.0,0.00016323,2]
[366159250,1750091457616,-939.61,0.00016323,2]
[366159251,1750091457626,-490.0,0.00016323,2]
[366159252,1750091457637,-490.0,0.00016323,2]
[366159253,1750091457648,-979.21,0.00016323,2]
[366159254,1750091457657,-1590.74,0.00016323,2]
[366159255,1750091457667,-490.0,0.00016323,2]
[366159256,1750091457677,-888.47,0.00016323,2]
[366159257,1750091457687,-490.0,0.00016323,2]
[366159258,1750091457696,-578.82,0.00016323,2]
[366159259,1750091457707,-1066.34,0.00016323,2]
[366159260,1750091457717,-490.0,0.00016323,2]
[366159261,1750091457727,-1539.34,0.00016323,2]
[366159262,1750091457737,-1408.23,0.00016323,2]
[366159263,1750091457747,-1353.46,0.00016323,2]
[366159264,1750091457757,-490.0,0.00016323,2]
[366159265,1750091457767,-978.44,0.00016323,2]
[366159266,1750091457777,-537.54,0.00016323,2]
[366159267,1750091457787,-1312.91,0.00016323,2]
[366159268,1750091457797,-490.0,0.00016323,2]
[366159269,1750091457807,-1120.43,0.00016323,2]
[366159270,1750091457816,-490.0,0.00016323,2]
[366159271,1750091457826,-490.0,0.00016323,2]
[366159272,1750091457836,-490.0,0.00016323,2]
[366159273,1750091457847,-513.19,0.00016323,2]
[366159274,1750091457859,-822.49,0.00016323,2]
[366159275,1750091457869,-490.0,0.00016323,2]
[366159276,1750091457879,-545.84,0.00016323,2]
[366159277,1750091457890,-1015.76,0.00016323,2]
[366159278,1750091457900,-627.36,0.00016323,2]
[366159279,1750091457910,-490.0,0.00016323,2]
[366159280,1750091457921,-490.0,0.00016323,2]
[366159281,1750091457931,-490.0,0.00016323,2]
[366159282,1750091457941,-490.0,0.00016323,2]
[366159283,1750091457950,-490.0,0.00016323,2]
[366159284,1750091457960,-1976.34,0.00016323,2]
[366159285,1750091457971,-490.0,0.00016323,2]
[366159286,1750091457980,-783.88,0.00016323,2]
[366159287,1750091457990,-1248.4,0.00016323,2]
[366159288,1750091458000,-490.0,0.00016323,2]
[366159289,1750091458010,-530.5,0.00016323,2]
[366159290,1750091458020,-1177.91,0.00016323,2]
[366159291,1750091458029,-527.0,0.00016323,2]
[366159292,1750091458039,-764.61,0.00016323,2]
[366159293,1750091458049,-799.25,0.00016323,2]
[366159294,1750091458059,-2753.07,0.00016323,2]
[366159295,1750091458070,-490.0,0.00016323,2]
[366159296,1750091458079,-982.7,0.00016323,2]
[366159297,1750091458090,-875.31,0.00016323,2]
[366159298,1750091458100,-789.1,0.00016323,2]
[366159299,1750091458109,-814.04,0.00016323,2]
[366159300,1750091458119,-775.73,0.00016323,2]
[366159301,1750091458129,-490.0,0.00016323,2]
[366159302,1750091458140,-490.0,0.00016323,2]
[366159303,1750091458150,-812.52,0.00016323,2]
[366159304,1750091458159,-552.79,0.00016323,2]
[366159305,1750091458169,-873.3,0.00016323,2]
[366159306,1750091458179,-680.95,0.00016323,2]
[366159307,1750091458189,-908.02,0.00016323,2]
[366159308,1750091458199,-924.8,0.00016323,2]
[366159309,1750091458208,-634.49,0.00016323,2]
[366159310,1750091458219,-621.51,0.00016323,2]
[366159311,1750091458229,-490.0,0.00016323,2]
[366159312,1750091458239,-490.0,0.00016323,2]
[366159313,1750091458248,-1180.35,0.00016323,2]
[366159314,1750091458258,-1142.87,0.00016323,2]
[366159315,1750091458268,-490.0,0.00016324,2]
[366159316,1750091458278,-490.0,0.00016324,2]
[366159317,1750091458288,-490.0,0.00016324,2]
[366159318,1750091458298,-490.0,0.00016324,2]
[366159319,1750091458308,-491.49293841,0.00016324,2]
[366159320,1750091458318,-490.0,0.00016324,2]
[366159321,1750091458329,-490.0,0.00016324,2]
[366159322,1750091458339,-490.0,0.00016324,2]
[366159323,1750091458350,-545.13,0.00016324,2]
[366159324,1750091458456,-714.96,0.00016324,2]
[366159325,1750091458467,-517.15,0.00016324,2]
[366159326,1750091458476,-490.0,0.00016324,2]
[366159327,1750091458486,-490.0,0.00016324,2]
[366159328,1750091458496,-490.0,0.00016324,2]
[366159329,1750091458507,-490.0,0.00016324,2]
[366159330,1750091458517,-490.0,0.00016324,2]
[366159331,1750091458530,-490.0,0.00016324,2]
[366159332,1750091458540,-490.0,0.00016324,2]
[366159333,1750091458550,-490.0,0.00016324,2]
[366159334,1750091458562,-490.0,0.00016324,2]
[366159335,1750091458572,-247.08,0.00016324,2]
[366159336,1750091458582,-634.26793654,0.00016324,2]
[366159337,1750091458592,-490.0,0.00016324,2]
[366159338,1750091458602,-490.0,0.00016324,2]
[366159339,1750091458611,-490.0,0.00016324,2]
[366159340,1750091458622,-490.0,0.00016324,2]
[366159341,1750091458633,-490.0,0.00016324,2]
[366159342,1750091458644,-490.0,0.00016324,2]
[366159343,1750091458653,-838.49,0.00016324,2]
[366159344,1750091458662,-167.14706428,0.00016324,2]
[366159345,1750091458672,-1141.55,0.00016324,2]
[366159346,1750091458682,-490.0,0.00016324,2]
[366159347,1750091458692,-1163.39,0.00016324,2]
[366159348,1750091458702,-541.6,0.00016324,2]
[366159349,1750091458712,-490.0,0.00016324,2]
[366159350,1750091458723,-490.0,0.00016324,2]
[366159351,1750091458733,-913.22,0.00016324,2]
[366159352,1750091458742,-630.79,0.00016324,2]
[366159353,1750091458753,-881.45,0.00016324,2]
[366159354,1750091458763,-533.57,0.00016324,2]
[366159355,1750091458773,-150.0,0.00016324,2]
[366159356,1750091458783,-150.0,0.00016324,2]
[366159357,1750091458792,-493.78762477,0.00016324,2]
[366159358,1750091458802,-490.0,0.00016324,2]
[366159359,1750091458812,-490.0,0.00016324,2]
[366159360,1750091458822,-150.0,0.00016324,2]
[366159361,1750091458832,-250.0,0.00016324,2]
[366159362,1750091458842,-200.0,0.00016324,2]
[366159363,1750091458851,-150.0,0.00016324,2]
[366159364,1750091458861,-150.0,0.00016324,2]
[366159365,1750091458870,-150.0,0.00016324,2]
[366159366,1750091458880,-200.0,0.00016324,2]
[366159367,1750091458891,-150.0,0.00016324,2]
[366159368,1750091458901,-150.0,0.00016324,2]
[366159369,1750091458911,-500.0,0.00016324,2]
[366159370,1750091458922,-150.0,0.00016324,2]
[366159371,1750091458932,-150.0,0.00016324,2]
[366159372,1750091458943,-150.0,0.00016324,2]
[366159373,1750091458954,-150.53337332,0.00016324,2]
[366159374,1750091458963,-152.07766656,0.00016324,2]
[366159375,1750091458973,-150.0,0.00016324,2]
[366159376,1750091458982,-150.0,0.00016325,2]
[366159377,1750091458992,-150.0,0.00016329,2]
[366159378,1750091459001,-150.0,0.00016335,2]
[366159379,1750091459012,-9462.07433665,0.00016338,2]
[366159380,1750091459021,-268.29468426,0.00016339,2]
[366159381,1750091459031,-1000.0,0.0001634,2]
[366159382,1750091459040,-150.0,0.0001634,2]
[366159383,1750091459051,-200.0,0.0001634,2]
[366159384,1750091459060,-150.0,0.00016342,2]
[366159385,1750091459070,-1000.0,0.00016344,2]
[366159386,1750091459079,-833.8156298,0.00016349,2]
[366159387,1750091459090,-150.0,0.00016349,2]
[366159388,1750091459100,-150.0,0.0001635,2]
[366159389,1750091459109,-150.33809444,0.00016351,2]
[366159390,1750091459118,-500.0,0.00016351,2]
[366159391,1750091459128,-150.0,0.00016351,2]
[366159392,1750091459137,-150.0,0.00016351,2]
[366159393,1750091459147,-150.0,0.00016353,2]
[366159394,1750091459157,-8387.00614784,0.00016353,2]
[366159395,1750091459166,-150.0,0.00016354,2]
[366159396,1750091459176,-150.0,0.00016356,2]
[366159397,1750091459185,-2000.0,0.00016356,2]
[366159398,1750091459195,-200.0,0.00016356,2]
[366159399,1750091459204,-150.0,0.0001636,2]
[366159400,1750091459214,-150.0,0.00016361,2]
[366159401,1750091459223,-150.0,0.00016365,2]
[366159402,1750091459232,-150.0,0.00016373,2]
[366159403,1750091459241,-150.0,0.00016374,2]
[366159404,1750091459251,-150.0,0.00016375,2]
[366159405,1750091459260,-246.80271096,0.00016377,2]
[366159406,1750091459270,-600.0,0.00016379,2]
[366159407,1750091459279,-150.0,0.00016379,2]
[366159408,1750091459289,-150.0,0.00016379,2]
[366159409,1750091459298,-150.0,0.0001638,2]
[366159410,1750091459309,-762.6,0.00016385,2]
[366159411,1750091459319,-490.0,0.00016385,2]
[366159412,1750091459329,-615.75,0.00016385,2]
[366159413,1750091459339,-993.6,0.00016385,2]
[366159414,1750091459349,-1070.2,0.00016385,2]
[366159415,1750091459359,-1050.26,0.00016385,2]
[366159416,1750091459369,-490.0,0.00016385,2]
[366159417,1750091459378,-653.99,0.00016385,2]
[366159418,1750091459389,-713.63,0.00016385,2]
[366159419,1750091459399,-610.75,0.00016385,2]
[366159420,1750091459408,-3614.15,0.00016385,2]
[366159421,1750091459418,-504.1,0.00016385,2]
[366159422,1750091459428,-1297.06,0.00016385,2]
[366159423,1750091459439,-583.72,0.00016385,2]
[366159424,1750091459448,-3953.6,0.00016385,2]
[366159425,1750091459458,-490.0,0.00016385,2]
[366159426,1750091459469,-876.57,0.00016385,2]
[366159427,1750091459479,-2243.06,0.00016385,2]
[366159428,1750091459488,-851.97,0.00016385,2]
[366159429,1750091459498,-523.8,0.00016385,2]
[366159430,1750091459508,-490.0,0.00016385,2]
[366159431,1750091459518,-490.0,0.00016385,2]
[366159432,1750091459529,-490.0,0.00016385,2]
[366159433,1750091459539,-720.98,0.00016385,2]
[366159434,1750091459549,-823.62,0.00016385,2]
[366159435,1750091459564,-527.64,0.00016385,2]
[366159436,1750091459574,-490.0,0.00016385,2]
[366159437,1750091459584,-208.18,0.00016385,2]
[366159438,1750091459593,-733.51,0.00016385,2]
[366159439,1750091459604,-923.94,0.00016385,2]
[366159440,1750091459614,-490.0,0.00016385,2]
[366159441,1750091459624,-765.95,0.00016386,2]
[366159442,1750091459634,-83.54149801,0.00016386,2]
[366159443,1750091460161,-507.97850199,0.00016386,2]
[366159444,1750091460171,-1284.74,0.00016386,2]
[366159445,1750091460181,-700.85289621,0.00016386,2]
[366159446,1750091460351,202.0,0.00015473,2]
[366159447,1750091460985,-490.0,0.00016056,2]
[366159448,1750091460996,-641.95,0.00016058,2]
[366159449,1750091461006,-641.95,0.00016223,2]
[366159450,1750091461015,-617.19710379,0.00016386,2]
[366159451,1750091461026,-770.92695,0.00016386,2]
[366159452,1750091461037,-6063.55,0.00016386,2]
[366159453,1750091461047,-315.43436433,0.00016386,2]
[366159454,1750091461060,-174.56563567,0.00016386,2]
[366159455,1750091461070,-268.94874849,0.00016386,2]
[366159456,1750091461087,-258.42461062,0.00016386,2]
[366159457,1750091461100,-248.90664089,0.00016386,2]
[366159458,1750091461109,-578.42335911,0.00016386,2]
[366159459,1750091461139,-139.51664089,0.00016386,2]
[366159460,1750091461149,-1035.791105,0.00016386,2]
[366159461,1750091461158,-1182.28,0.00016386,2]
[366159462,1750091461168,-1129.2,0.00016386,2]
[366159463,1750091461178,-490.0,0.00016386,2]
[366159464,1750091461188,-1010.89,0.00016386,2]
[366159465,1750091461197,-490.0,0.00016386,2]
[366159466,1750091461206,-1036.01,0.00016386,2]
[366159467,1750091461216,-724.29,0.00016386,2]
[366159468,1750091461225,-490.0,0.00016386,2]
[366159469,1750091461235,-2766.55,0.00016386,2]
[366159470,1750091461244,-1651.26,0.00016386,2]
[366159471,1750091461254,-490.0,0.00016386,2]
[366159472,1750091461265,-1222.46,0.00016386,2]
[366159473,1750091461274,-594.74683045,0.00016386,2]
[366159474,1750091465207,-565.11,0.00016056,2]
[366159475,1750091465217,-2161.39,0.00016058,2]
[366159476,1750091465226,-62.78200524,0.00016058,2]
[366159477,1750091465238,-427.21799476,0.00016058,2]
[366159478,1750091465249,-2161.39,0.00016223,2]
[366159479,1750091465259,-578.65316955,0.00016386,2]
[366159480,1750091465269,-1931.78,0.00016386,2]
[366159481,1750091465279,-1848.28,0.00016386,2]
[366159482,1750091465288,-531.14,0.00016386,2]
[366159483,1750091465298,-2072.92,0.00016386,2]
[366159484,1750091465308,-7308.52,0.00016386,2]
[366159485,1750091465318,-690.49,0.00016386,2]
[366159486,1750091465327,-1395.77,0.00016386,2]
[366159487,1750091465337,-711.95,0.00016386,2]
[366159488,1750091465348,-1990.42,0.00016386,2]
[366159489,1750091465358,-490.0,0.00016386,2]
[366159490,1750091465368,-2034.89,0.00016386,2]
[366159491,1750091465378,-571.59,0.00016386,2]
[366159492,1750091465387,-2246.04,0.00016386,2]
[366159493,1750091465398,-774.87,0.00016386,2]
[366159494,1750091465408,-2763.23,0.00016386,2]
[366159495,1750091465419,-490.0,0.00016387,2]
[366159496,1750091465429,-490.0,0.00016387,2]
[366159497,1750091465438,-490.0,0.00016387,2]
[366159498,1750091465448,-288.29483571,0.00016387,2]
[366159504,1750091479842,1748.56644105,0.00015958,2]
[366159505,1750091479866,3251.43355895,0.00015958,2]
[366159509,1750091501361,200.0,0.00015615,2]
[366159511,1750091519965,451.37197656,0.0002465,120]
[366159512,1750091525951,500.0,0.00015068,2]
[366159515,1750091531837,200.0,0.00015299,2]
[366159518,1750091556839,5848.56644105,0.00015948,2]
[366159519,1750091556861,10000.0,0.00015948,2]
[366159520,1750091556884,8197.26185895,0.00015948,2]
[366159524,1750091581530,1384.7585,0.00015958,2]
[366159525,1750091583498,417.97964105,0.00015759,2]
[366159526,1750091583524,1186.21675719,0.00015759,2]
[366159527,1750091591697,208.0,0.00015615,2]
[366159530,1750091597116,276.54553051,0.00015947,2]
[366159531,1750091599798,431.2153,0.00015948,2]
[366159532,1750091605452,411.2137,0.0001594,2]
[366159533,1750091642734,5000.0,0.00015958,2]
[366159534,1750091660469,156.26137981,0.00015957,2]
[366159538,1750091688768,666.0,0.00015215,2]
[366159539,1750091691677,176.1078494,0.00015958,2]
[366159541,1750091712718,166.48,0.00015658,2]
[366159542,1750091768958,1000.0,0.00015187,2]
[366159545,1750091801632,242.0,0.00015615,2]
[366159547,1750091829532,79.95948309,0.00013699,2]
[366159548,1750091829558,168.94051691,0.00013699,2]
[366159551,1750091840828,2974.70278497,0.00015956,2]
[366159552,1750091851234,207.87586697,0.00015958,2]
[366159553,1750091857217,156.2613798,0.00015956,2]
[366159554,1750091861911,201.0,0.00015169,2]
[366159555,1750091862174,201.0,0.00015697,2]
[366159557,1750091887047,250.0,0.00015087,2]
[366159558,1750091893762,5032.20368874,0.00015957,2]
[366159560,1750091907024,154.09436826,0.00015956,2]
[366159561,1750091921537,202.0,0.0001589,2]
[366159562,1750091921864,202.0,0.000156,2]
[366159563,1750091922195,202.0,0.0001531,2]
[366159564,1750091941032,47.92139435,0.00015075,2]
[366159565,1750091941056,152.07860565,0.00015075,2]
[366159566,1750091976718,1151.75,0.00015057,2]
[366159570,1750092042751,156.2613798,0.00015956,2]
[366159573,1750092101454,830.3019679,0.00015915,2]
[366159574,1750092110267,560.88911044,0.00015956,2]
[366159575,1750092132756,154.09436821,0.00015956,2]
[366159579,1750092192262,187.08828021,0.00015956,2]
[366159580,1750092205097,162.55,0.00015037,2]
[366159581,1750092218946,156.2613798,0.00015955,2]
[366159582,1750092221334,201.0,0.00015224,2]
[366159583,1750092221643,201.0,0.00015764,2]
[366159584,1750092280146,4528.98331983,0.00015956,2]
[366159585,1750092305615,1557.74158816,0.000159,2]
[366159586,1750092305649,2499.66841184,0.000159,2]
[366159587,1750092307340,4057.41,0.000159,2]
[366159588,1750092308971,3442.92158816,0.00016,2]
[366159589,1750092308995,614.48841184,0.00016,2]
[366159590,1750092310661,4057.41,0.00016,2]
[366159591,1750092312912,4057.41,0.00016,2]
[366159592,1750092319773,200.0,0.00015039,7]
[366159593,1750092325970,1070.69158816,0.00016,2]
[366159594,1750092326017,4148.46568564,0.00016,2]
[366159595,1750092328933,1383.96482998,0.00015956,2]
[366159597,1750092340247,1156.66,0.00015039,2]
[366159598,1750092352761,154.09436821,0.00015956,2]
[366159599,1750092356503,2677.23250641,0.00015955,2]
[366159601,1750092383515,156.2613798,0.00015955,2]
[366159602,1750092388282,323.32122996,0.00015037,2]
[366159603,1750092388306,10000.0,0.00015037,2]
[366159604,1750092388329,10000.0,0.00015037,2]
[366159605,1750092388354,3576.67877004,0.00015037,2]
[366159612,1750092457609,560.88911043,0.00015955,2]
[366159628,1750092517153,521.22,0.0001504,2]
[366159632,1750092526958,188.43,0.0001504,2]